[Event "European Women-ch 2023"]
[Site "Petrovac"]
[Date "2023.03.27"]
[Round "9.2"]
[White "Sargsyan, Anna M."]
[Black "Khotenashvili, Bela"]
[Result "1/2-1/2"]
[ECO "C54"]
[WhiteElo "2371"]
[BlackElo "2491"]
[Annotator "TA"]
[PlyCount "72"]
[EventDate "2023.03.15"]
[EventType "swiss"]
[EventCountry "MNE"]
[SourceTitle "playchess.com"]
[Source "ChessBase"]
[SourceQuality "1"]
[TimeControl "40/5400+30:1800+30"]

{[%evp 15,72,21,19,19,19,8,0,0,22,34,31,24,24,30,22,29,27,26,41,59,47,35,29,37,38,29,32,35,50,32,24,44,42,35,46,42,43,36,33,12,15,14,16,12,22,9,9,0,14,8,8,8,13,8,18,0,0,0,0]} 1. e4 {[%emt 0:00:06]} e5 {[%emt 0:00:35]} 2. Nf3 {[%emt 0:00:08]} Nc6 {[%emt 0:00:11]} 3. Bc4 {[%emt 0:00:06]} Nf6 {[%emt 0:00:09]} 4. d3 {[%emt 0:00:06]} Bc5 {[%emt 0:00:29]} 5. c3 {[%emt 0:00:16]} O-O {[%emt 0:00:26]} 6. O-O {[%emt 0:00:08]} d5 {[%emt 0:00:16]} 7. exd5 {[%emt 0:00:10]} Nxd5 {[%emt 0:00:03]} 8. Re1 {[%emt 0:00:23]} Bg4 {[%emt 0:00:39]} 9. h3 {[%emt 0:01:21] C54: Giuoco Piano: 4 c3 Nf6, main lines with 5 d4 and 5 d3.} Bh5 {[%emt 0:00:04]} 10. Nbd2 {[%emt 0:00:06]} Nb6 {[%emt 0:01:11]} 11. Bb3 {[%emt 0:00:07]} Kh8 {[%emt 0:06:38]} 12. Ne4 {[%emt 0:20:37]} Bd6 {[%emt 0:03:05]} 13. a4 {[%emt 0:00:19]} a5 {[%emt 0:18:58]} 14. g4 {[%emt 0:10:18]} Bg6 {[%emt 0:05:32] [#]} 15. d4 $146 {[%emt 0:06:30]} ({Predecessor:} 15. Bg5 f6 16. Bh4 Qd7 17. Nh2 f5 18. Nxd6 cxd6 19. f3 f4 20. d4 Rfe8 21. dxe5 dxe5 {1-0 Seidel,M (2020)-Gottstein,T Baunatal op 1st 1995 (5)}) 15... exd4 {[%emt 0:24:36]} 16. Nxd4 {[%emt 0:00:49]} Re8 {[%emt 0:14:11]} 17. Nf5 {[%emt 0:09:31]} Bf8 {[%emt 0:14:02]} 18. Bg5 {[%emt 0:12:41]} Qxd1 {[%emt 0:00:17]} 19. Raxd1 {[%emt 0:00:06]} Ne5 {[%emt 0:00:48] [#] White must now prevent ...Nf3+.} 20. Kg2 {[%emt 0:00:33][%cal Oe4f6] Dodges Nf3. Threatens to win with Nf6!} Nec4 {[%emt 0:03:18]} 21. Bc1 {[%emt 0:05:25]} Rad8 {[%emt 0:01:33]} 22. Ng5 {[%emt 0:04:08] Hoping for Nh4.} h6 {[%emt 0:01:02]} 23. Rxd8 {[%emt 0:08:07]} Rxd8 {[%emt 0:00:01]} 24. Nf3 {[%emt 0:00:09]} Bxf5 {[%emt 0:03:51]} 25. gxf5 {[%emt 0:00:02]} Kg8 {[%emt 0:00:28]} 26. f6 {[%emt 0:01:25]} gxf6 {[%emt 0:00:12]} 27. Re4 {[%emt 0:05:12]} Nd6 {[%emt 0:00:10] The position is equal.} 28. Rg4+ {[%emt 0:00:35][%mdl 1024] White has compensation.} Kh8 {[%emt 0:00:12]} 29. Rh4 {[%emt 0:00:28]} Nd7 {[%emt 0:01:17]} 30. Bc2 {[%emt 0:02:19]} (30. Bxh6 $2 Nf5 31. Bf4+ Nxh4+ 32. Nxh4 Nc5 $19) 30... Re8 {[%emt 0:00:36]} 31. Nd4 {[%emt 0:00:28]} c5 {[%emt 0:00:33]} 32. Nf5 {[%emt 0:02:01]} Re2 {[%emt 0:00:23]} 33. Ne3 {[%emt 0:07:23] next Kf1 is good for White.} Re1 {[%emt 0:00:01]} 34. Bd2 {[%emt 0:00:01]} Re2 {[%emt 0:01:03]} 35. Bc1 {[%emt 0:00:02]} Re1 $1 {[%emt 0:00:03]} 36. Bd2 {[%emt 0:00:29]} Re2 {[%emt 0:00:01] Weighted Error Value: White=0.04 (flawless) /Black=0.03 (flawless)} 1/2-1/2

[Event "European Women-ch 2023"]
[Site "Petrovac"]
[Date "2023.03.27"]
[Round "9.2"]
[White "Calzetta Ruiz, Monica"]
[Black "Aydin, Gulenay"]
[Result "1-0"]
[ECO "A36"]
[WhiteElo "2185"]
[BlackElo "2039"]
[Annotator "TA"]
[PlyCount "137"]
[EventDate "2023.03.15"]
[EventType "swiss"]
[EventCountry "MNE"]
[SourceTitle "playchess.com"]
[Source "ChessBase"]
[SourceQuality "1"]
[TimeControl "40/5400+30:1800+30"]

{[%evp 23,137,31,25,21,35,35,35,36,33,33,33,29,37,43,38,35,37,42,35,31,36,34,26,30,27,22,56,50,57,47,60,43,57,32,65,55,53,51,70,70,73,66,77,66,72,52,64,39,53,43,43,41,164,87,91,91,95,89,104,76,158,158,262,262,239,229,272,272,264,264,264,264,264,264,289,289,283,262,263,263,502,513,495,473,520,496,480,458,458,458,426,400,12846,29957,29973,29973,29976,29974,29981,29982,29984,29983,29985,29984,29984,29983,29982,29981,29981,29982,29982,29983,29990,29991,29995,9306]} 1. c4 {[%emt 0:00:03]} Nf6 {[%emt 0:01:17]} 2. Nc3 {[%emt 0:00:10]} g6 {[%emt 0:00:26]} 3. g3 {[%emt 0:00:12]} Bg7 {[%emt 0:00:07]} 4. Bg2 {[%emt 0:00:05]} O-O {[%emt 0:00:06]} 5. e4 {[%emt 0:00:24]} d6 {[%emt 0:01:04]} 6. Nge2 {[%emt 0:00:25]} c5 {[%emt 0:07:20]} 7. O-O {[%emt 0:01:05]} Nc6 {[%emt 0:00:16]} 8. d3 {[%emt 0:00:24]} a6 {[%emt 0:04:38]} 9. h3 {[%emt 0:01:31]} Rb8 {[%emt 0:00:25]} 10. a4 {[%emt 0:01:55]} Ne8 {[%emt 0:02:17]} 11. Be3 {[%emt 0:01:11]} Nd4 {[%emt 0:09:06]} 12. Rb1 {[%emt 0:00:47]} Bd7 {[%emt 0:07:09] is the legacy move (12...Nc7).} 13. b4 {[%emt 0:02:58] A36: Symmetrical English vs ...g6: 4 Bg2 Bg7.} Nxe2+ {[%emt 0:07:23]} 14. Nxe2 {[%emt 0:00:08]} cxb4 {[%emt 0:01:26]} 15. Rxb4 {[%emt 0:00:30] White is slightly better.} b5 {[%emt 0:00:41]} 16. axb5 {[%emt 0:31:50]} axb5 {[%emt 0:00:15]} 17. cxb5 {[%emt 0:07:07]} Rxb5 {[%emt 0:01:19]} 18. Rxb5 {[%emt 0:01:31]} Bxb5 {[%emt 0:00:03]} 19. Qb3 {[%emt 0:00:14]} Bd7 {[%emt 0:01:47]} 20. Rc1 {[%emt 0:01:27]} Nf6 {[%emt 0:03:43]} 21. Nd4 {[%emt 0:18:00] [#]} Qb8 $146 {[%emt 0:10:20]} ({Predecessor:} 21... Qa5 22. Nc6 Bxc6 23. Rxc6 Nd7 24. Qc2 Qd8 25. d4 h6 26. Rc7 Nc5 27. Ra7 Ne6 {1-0 Pogan,N (2290)-Schroeter,S (2125) BL2-Sued 1314 2013 (6.8)}) 22. Qxb8 {[%emt 0:02:48]} Rxb8 {[%emt 0:01:42]} 23. Nc6 {[%emt 0:00:08]} Re8 {[%emt 0:11:18]} 24. d4 {[%emt 0:00:36] Hoping for e5.} Bxc6 {[%emt 0:05:13]} 25. Rxc6 {[%emt 0:00:04]} Nd7 {[%emt 0:02:37]} 26. Rc7 {[%emt 0:03:49]} Nf8 {[%emt 0:01:18]} 27. d5 {[%emt 0:04:27]} h6 {[%emt 0:05:41]} 28. Bf1 {[%emt 0:00:48]} Nh7 {[%emt 0:01:45]} 29. Bb5 {[%emt 0:03:43]} Rb8 {[%emt 0:00:07]} 30. Bd3 {[%emt 0:00:06] This pair of bishops is nice.} Re8 {[%emt 0:03:03]} 31. Rb7 {[%emt 0:01:14]} Bf8 {[%emt 0:00:22]} 32. Kg2 {[%emt 0:04:51] White is much more active.} Nf6 {[%emt 0:00:34]} 33. Kf3 {[%emt 0:00:46]} Ra8 {[%emt 0:03:01]} 34. Bb5 {[%emt 0:02:48]} Ra3 {[%emt 0:01:52]} 35. Bc6 {[%emt 0:00:16]} Rc3 {[%emt 0:01:08]} 36. Rb8 {[%emt 0:00:31]} Kg7 {[%emt 0:00:29]} 37. Ke2 {[%emt 0:02:10]} Rc4 {[%emt 0:05:08] Repels Bd4} (37... e5 $14) 38. f3 {[%emt 0:00:29]} ({White should try} 38. e5 $1 $18 {[%cal Re5f6]} dxe5 39. Kd3) 38... Rc2+ $16 {[%emt 0:00:12]} 39. Bd2 {[%emt 0:04:33]} Ra2 {[%emt 0:00:55]} 40. g4 {[%emt 0:00:00] Repels Nh5} g5 {[%emt 0:00:00]} 41. Kd3 $1 {[%emt 0:05:04]} Ra1 {[%emt 0:04:37]} (41... e5 $142) 42. Bc3 $1 {[%emt 0:02:29]} Rh1 {[%emt 0:06:34] [#]} (42... Rd1+ $16 43. Ke2 Rc1) 43. e5 $1 $18 {[%emt 0:00:08]} dxe5 {[%emt 0:01:35]} 44. Bxe5 {[%emt 0:00:06]} Rxh3 {[%emt 0:05:07] [#]} 45. d6 $1 {[%emt 0:00:09][%mdl 576] Deflection} exd6 {[%emt 0:00:49]} 46. Bxf6+ {[%emt 0:00:18][%mdl 64] Deflection} Kxf6 {[%emt 0:00:11]} 47. Rxf8 {[%emt 0:00:06][%mdl 4096] Endgame KRB-KR} h5 {[%emt 0:01:26]} 48. gxh5 {[%emt 0:05:16]} Rxh5 {[%emt 0:01:13][%cal Og5g4] [#]} 49. Bd5 $1 {[%emt 0:03:06]} Rh7 {[%emt 0:05:24]} 50. Ke4 {[%emt 0:01:15]} Rh4+ {[%emt 0:01:53]} 51. Ke3 {[%emt 0:00:08]} Rh7 {[%emt 0:00:19]} (51... g4 52. f4 (52. Bxf7 Ke7 $11) (52. Rxf7+ Ke5 $11) 52... Rh7) 52. Kf2 {[%emt 0:02:10]} Rg7 {[%emt 0:01:40]} 53. Kg3 {[%emt 0:00:06]} Ke7 {[%emt 0:01:56]} 54. Rh8 {[%emt 0:01:40]} Kf6 {[%emt 0:03:16]} 55. Be4 {[%emt 0:03:46] Intending Re8 and mate.} Ke6 {[%emt 0:03:10]} 56. Re8+ {[%emt 0:02:47]} Kd7 {[%emt 0:00:15]} 57. Ra8 {[%emt 0:00:19]} g4 {[%emt 0:01:12]} (57... Ke6 $142 58. Ra5 Rg8) 58. fxg4 {[%emt 0:00:25]} Ke7 {[%emt 0:00:44] White mates.} 59. Kf4 {[%emt 0:00:32]} Kf6 {[%emt 0:00:02]} 60. Bf5 {[%emt 0:01:00]} Rg5 {[%emt 0:00:24]} 61. Rd8 {[%emt 0:00:36]} Rg7 {[%emt 0:00:43]} 62. Rxd6+ {[%emt 0:00:29]} Ke7 {[%emt 0:00:01]} 63. Rd7+ {[%emt 0:00:19]} Ke8 {[%emt 0:00:14]} 64. Ra7 {[%emt 0:01:12]} Kf8 {[%emt 0:00:21]} 65. Ra8+ {[%emt 0:02:38]} Ke7 {[%emt 0:00:01]} 66. Ke5 {[%emt 0:00:58]} f6+ {[%emt 0:01:15]} 67. Kd5 {[%emt 0:00:08]} Rg5 {[%emt 0:00:25]} 68. Ra7+ {[%emt 0:00:12]} Kf8 {[%emt 0:00:03]} 69. Ke4 {[%emt 0:00:37] Weighted Error Value: White=0.06 (flawless) /Black=0.21 (precise)} (69. Ke6 $142 Rxg4 70. Bxg4 f5 71. Bxf5 Kg8 72. Kf6 Kh8 73. Ra8#) 1-0

[Event "European Women-ch 2023"]
[Site "Petrovac"]
[Date "2023.03.27"]
[Round "9.3"]
[White "Vega Gutierrez, Sabrina"]
[Black "Rudzinska, Michalina"]
[Result "1/2-1/2"]
[ECO "B12"]
[WhiteElo "2361"]
[BlackElo "2212"]
[Annotator "TA"]
[PlyCount "111"]
[EventDate "2023.03.15"]
[EventType "swiss"]
[EventCountry "MNE"]
[SourceTitle "playchess.com"]
[Source "ChessBase"]
[SourceQuality "1"]
[TimeControl "40/5400+30:1800+30"]

{[%evp 13,111,0,11,4,9,10,11,7,0,0,0,0,0,0,0,-10,0,0,0,0,0,0,0,-15,-31,-32,-25,-31,-31,-31,0,0,32,-14,-21,-56,-41,-104,-58,-139,-139,-187,-165,-159,-37,-49,-8,-8,-12,-30,-12,-8,-8,-33,-28,-118,-27,-31,0,0,0,-16,-14,-45,-45,-325,-18,-94,0,0,0,-5,0,0,0,0,0,0,0,0,0,0,0,-69,-69,-69,-69,-69,-69,-68,-68,-68,-68,-69,-69,-69,0,0,0,0]} 1. e4 {[%emt 0:00:03]} c6 {[%emt 0:00:10]} 2. d4 {[%emt 0:00:06]} d5 {[%emt 0:00:08]} 3. e5 {[%emt 0:00:06]} Bf5 {[%emt 0:00:09]} 4. h4 {[%emt 0:00:10]} h5 {[%emt 0:00:16]} 5. c4 {[%emt 0:00:13]} e6 {[%emt 0:00:29]} 6. Nc3 {[%emt 0:00:07]} dxc4 $1 {[%emt 0:02:42][%mdl 4] outshines the older 6...Ne7.} 7. Bxc4 {[%emt 0:00:18]} Nd7 {[%emt 0:00:21]} 8. Nf3 {[%emt 0:00:22] B12: Caro-Kann: Advance Variation.} Nb6 {[%emt 0:00:52]} 9. Be2 {[%emt 0:00:09]} Ne7 {[%emt 0:12:16]} 10. Bg5 {[%emt 0:00:23][%cal Od4d5]} Qd7 {[%emt 0:01:00]} ({Resist} 10... Nbd5 11. Nb5 Kd7 12. Nd6 $16) 11. O-O {[%emt 0:13:26]} Bg4 {[%emt 0:03:47] [#]} 12. a4 $146 {[%emt 0:09:44]} ({Predecessor:} 12. Nh2 Bxe2 13. Qxe2 Nf5 14. Nf3 Be7 15. Bxe7 Qxe7 16. g3 Rd8 17. Rfd1 f6 18. Rd3 {½-½ Lupulescu,C (2659)-Harikrishna,P (2730) FIDE World Cup 2021 (3.2)}) 12... Nf5 {[%emt 0:02:59]} 13. a5 {[%emt 0:00:40]} Nd5 {[%emt 0:02:31]} 14. a6 {[%emt 0:00:24]} b6 {[%emt 0:01:30]} 15. Nxd5 {[%emt 0:06:42]} Qxd5 {[%emt 0:01:36]} 16. Rc1 {[%emt 0:00:45][%cal Oc1c6]} Be7 {[%emt 0:01:57]} 17. Bxe7 {[%emt 0:13:40]} Nxe7 {[%emt 0:04:01]} 18. Ng5 {[%emt 0:17:19]} Bxe2 {[%emt 0:03:44]} 19. Qxe2 {[%emt 0:00:06]} Nf5 {[%emt 0:05:50]} 20. Nf3 {[%emt 0:03:06]} Rc8 {[%emt 0:11:44]} 21. Rfd1 {[%emt 0:00:30]} Rh6 {[%emt 0:04:52][%cal Bh8h6,Bh6g6,Bg6g4][%mdl 32]} 22. g3 {[%emt 0:01:47]} Rg6 {[%emt 0:05:48]} 23. b4 {[%emt 0:08:23]} (23. Ng5 $14) 23... Rg4 $11 {[%emt 0:01:28]} 24. b5 {[%emt 0:00:48]} g5 $1 {[%emt 0:03:17]} 25. hxg5 {[%emt 0:13:11]} (25. Nxg5 $2 Nxh4 26. Qf1 Rxg5 $19) 25... h4 $1 {[%emt 0:01:09]} 26. Ne1 {[%emt 0:01:05]} (26. Rxc6 $15 Rd8 27. Rc7 hxg3 28. Rd3 (28. Rxa7 $2 {loses.} Nh4 $19)) 26... Rxg5 $17 {[%emt 0:04:57]} 27. Rxc6 {[%emt 0:01:26]} (27. bxc6 $17 {keeps fighting.} hxg3 28. Qf3) 27... Rxc6 {[%emt 0:05:10]} 28. bxc6 {[%emt 0:00:02]} Qxc6 {[%emt 0:02:32]} ({Black should play} 28... hxg3 $17 29. f4 Rg8) 29. Qd2 {[%emt 0:07:47]} Rg4 {[%emt 0:04:21]} (29... Rg6 $5 {[%cal Rh4g3]} 30. Rc1 Qd7 $15) 30. Rc1 $132 {[%emt 0:00:01][%mdl 2048] White is not keeping still} Qd7 {[%emt 0:06:17]} 31. Qe2 {[%emt 0:01:04]} Qxd4 {[%emt 0:02:50]} 32. Rc8+ $1 {[%emt 0:01:01]} Ke7 {[%emt 0:01:39]} (32... Kd7 $5 33. Ra8 $8 Rxg3+ 34. Kh2 Rb3 35. Rxa7+ Ke8 $11) 33. Qb5 {[%emt 0:01:13][%csl Gc8][%cal Rb5e8] [#]} Qd7 {[%emt 0:01:00] Prevents Qe8+} (33... Nxg3 $2 34. Re8#) (33... Rxg3+ $2 34. Kf1 Ng7 35. fxg3 hxg3 36. Nd3 $18) 34. Qxd7+ {[%emt 0:00:42]} Kxd7 $11 {[%emt 0:00:04][%mdl 4096] Endgame KRN-KRN} 35. Ra8 {[%emt 0:00:06]} Ra4 {[%emt 0:03:24]} 36. Rxa7+ {[%emt 0:00:03]} Kc6 {[%emt 0:00:05]} 37. Rxf7 {[%emt 0:01:13]} Rxa6 {[%emt 0:00:14]} 38. g4 {[%emt 0:00:23]} (38. gxh4 {simplifies} Nxh4 39. Nc2 Ra8 40. Ne3) 38... Ra1 {[%emt 0:01:38]} 39. Kf1 {[%emt 0:00:53][%mdl 8192]} (39. Kg2 $15 Rxe1 40. gxf5) 39... Nh6 $2 {[%emt 0:00:38]} (39... Nd4 $19 {Strongly threatening ...Kd5.} 40. g5 Nc2) 40. Rg7 {[%emt 0:00:00]} (40. Re7 $11 {remains equal.} Nxg4 41. Rxe6+ Kc5 42. f3 Ne3+ 43. Kf2) 40... Kd5 {[%emt 0:00:00]} (40... h3 $17 41. Rh7 Nxg4 42. Rxh3 Nxe5) 41. f3 {[%emt 0:06:32]} b5 {[%emt 0:07:48][%cal Ob5b4] aiming for ...b4!} 42. Kf2 {[%emt 0:06:23]} b4 {[%emt 0:02:51][%cal Oh4h3]} 43. Nd3 {[%emt 0:01:40]} h3 {[%emt 0:09:45] Threatens to win with ...h2.} 44. Nxb4+ {[%emt 0:09:09]} Kc4 {[%emt 0:06:30][%cal Oh3h2]} 45. Rc7+ {[%emt 0:04:34]} Kxb4 {[%emt 0:00:07] KRN-KR} 46. Kg3 {[%emt 0:00:02]} Rh1 {[%emt 0:00:53]} 47. Rc6 {[%emt 0:03:59]} h2 {[%emt 0:04:07]} 48. Kg2 {[%emt 0:00:01] [#] Inhibits Rf1.} (48. Rxe6 $11 Nf7 49. f4) 48... Rf1 $1 $15 {[%emt 0:01:06][%mdl 64] Decoy, Clearance, Promotion} 49. Kxh2 {[%emt 0:00:55]} Rxf3 {[%emt 0:00:05]} 50. g5 {[%emt 0:00:59]} Ng4+ {[%emt 0:00:23]} 51. Kg2 {[%emt 0:00:06] Black must now prevent Rb6+.} Nxe5 {[%emt 0:01:29]} 52. Rxe6 {[%emt 0:00:17]} Rf5 {[%emt 0:00:10]} 53. Kg3 {[%emt 0:00:44]} Rxg5+ {[%emt 0:00:53]} 54. Kf4 {[%emt 0:00:04]} Rh5 {[%emt 0:00:09]} (54... Nf7 $1 $15) 55. Rxe5 $11 {[%emt 0:00:04]} Rxe5 {[%emt 0:00:05]} 56. Kxe5 {[%emt 0:00:05] Weighted Error Value: White=0.22 (precise) /Black=0.21 (precise)} 1/2-1/2

[Event "European Women-ch 2023"]
[Site "Petrovac"]
[Date "2023.03.27"]
[Round "9.3"]
[White "Savina, Anastasia"]
[Black "Kiolbasa, Oliwia"]
[Result "0-1"]
[ECO "D53"]
[WhiteElo "2345"]
[BlackElo "2406"]
[Annotator "TA"]
[PlyCount "76"]
[EventDate "2023.03.15"]
[EventType "swiss"]
[EventCountry "MNE"]
[SourceTitle "playchess.com"]
[Source "ChessBase"]
[SourceQuality "1"]
[TimeControl "40/5400+30:1800+30"]

{[%evp 11,76,18,19,12,40,41,59,56,49,54,64,16,26,11,43,50,52,31,20,18,10,17,14,16,36,0,76,99,84,56,98,0,116,88,127,122,142,33,61,16,18,26,20,0,0,0,0,0,0,-229,-235,-228,-225,-317,-216,-218,-216,-261,-249,-316,-323,-312,-306,-12841,-12841,-12841,-12841]} 1. d4 {[%emt 0:00:54]} Nf6 {[%emt 0:00:18]} 2. Nf3 {[%emt 0:04:57]} d5 {[%emt 0:01:34]} 3. c4 {[%emt 0:00:09]} e6 {[%emt 0:00:16]} 4. Nc3 {[%emt 0:02:00]} Nbd7 {[%emt 0:00:30]} 5. Bg5 {[%emt 0:01:03][%cal Bc1g5,Bg5f4,Bf4e5][%mdl 32]} Be7 {[%emt 0:02:15]} 6. e3 {[%emt 0:00:28]} h6 {[%emt 0:00:45]} 7. Bf4 {[%emt 0:02:45] D53: Queen's Gambit Declined: 4 Bg5 Be7: Early deviations.} dxc4 {[%emt 0:20:33]} 8. Bxc4 {[%emt 0:02:39]} Nh5 {[%emt 0:00:35] [#]} 9. Be5 $146 {[%emt 0:13:37] White is slightly better.} ({Predecessor:} 9. Bg3 Nxg3 10. hxg3 a6 11. Ne4 b5 12. Bb3 Bb7 13. Bc2 c5 14. Kf1 c4 15. g4 {0-1 Haemmerlein,T-Thielsch,N Berlin Chemie op 1995 (2)}) 9... a6 {[%emt 0:11:23]} 10. Qc2 {[%emt 0:12:52]} Nhf6 {[%emt 0:01:13]} 11. O-O-O {[%emt 0:15:37]} (11. O-O $14) 11... b5 {[%emt 0:10:28]} 12. Bb3 {[%emt 0:20:14]} c6 {[%emt 0:01:54] [#]} 13. g4 $1 {[%emt 0:07:51]} Qb6 {[%emt 0:08:57]} (13... Nxe5 14. dxe5) 14. g5 {[%emt 0:03:02]} (14. Rhg1 $5 {[%cal Rg4g5]}) 14... hxg5 {[%emt 0:00:11]} 15. Nxg5 {[%emt 0:00:41][%cal Ob3e6] aiming for Bxe6!} Nxe5 {[%emt 0:07:27]} 16. dxe5 {[%emt 0:00:06]} Nd5 {[%emt 0:00:22]} 17. Rhg1 {[%emt 0:04:22][%cal Og5f7]} Rh6 {[%emt 0:01:58]} (17... Rxh2 18. Nxf7 Kf8 19. Bxd5 exd5 20. Qg6 Rxf2 21. Qxg7+ Ke8 22. Qg8+ Kd7 23. e6+ Kc7 24. Qg3+ Kb7 25. Qxf2 $18) 18. Nce4 {[%emt 0:03:49]} Bd7 {[%emt 0:03:18]} (18... a5 $1 $11) 19. Nd6+ $16 {[%emt 0:01:11]} Bxd6 {[%emt 0:01:54]} 20. exd6 {[%emt 0:00:02] Hoping for e4.} a5 $1 {[%emt 0:11:12]} 21. Kb1 {[%emt 0:00:15]} (21. Ne4 $16) 21... Nf6 {[%emt 0:05:50]} (21... a4 $11 {keeps the balance.} 22. Bxd5 cxd5) 22. a4 {[%emt 0:02:21]} bxa4 {[%emt 0:02:52]} 23. Bxa4 {[%emt 0:00:01]} Rb8 {[%emt 0:00:06] [#]} 24. h3 {[%emt 0:00:54]} (24. Nf3 $1 $16 Rh5 25. Qc3 (25. Rxg7 Rc5 $18)) 24... Kf8 {[%emt 0:02:43]} 25. e4 {[%emt 0:00:31]} c5 {[%emt 0:00:50][%cal Bc6c5,Bc5d4][%mdl 32] And now ...Bxa4 would win.} 26. Bxd7 {[%emt 0:00:28]} Nxd7 {[%emt 0:00:01]} 27. Qc3 {[%emt 0:00:14][%cal Og5e6] Nxe6+! is the strong threat.} e5 {[%emt 0:00:36] Dancing on a razor blade.} 28. f4 {[%emt 0:00:51]} Rxd6 {[%emt 0:02:10] Strongly threatening ...Rd4.} 29. fxe5 {[%emt 0:00:12]} Rd4 {[%emt 0:01:22]} 30. Rxd4 $2 {[%emt 0:00:48]} (30. e6 $11 {and White stays safe.} fxe6 31. Rxd4 cxd4 32. Qxd4) 30... cxd4 $19 {[%emt 0:00:05]} 31. Qa3+ {[%emt 0:00:03] [#]} Kg8 $1 {[%emt 0:00:45]} 32. Nf3 {[%emt 0:01:01]} (32. Rg2 $142 Nxe5 33. Qg3) 32... Nf8 {[%emt 0:00:26]} 33. Rd1 {[%emt 0:00:26]} Ne6 {[%emt 0:00:13]} 34. Rd2 {[%emt 0:00:08]} Qc6 {[%emt 0:01:44]} 35. Nxd4 {[%emt 0:00:50]} Qxe4+ {[%emt 0:00:12]} 36. Nc2 {[%emt 0:00:27]} Qxe5 {[%emt 0:00:24][%cal Oa5a4]} 37. Na1 $2 {[%emt 0:00:38]} (37. Ne3) 37... Qe1+ {[%emt 0:00:12]} 38. Kc2 {[%emt 0:00:11]} Rc8+ {[%emt 0:00:08][%mdl 64] Deflection.   Weighted Error Value: White=0.49/Black=0.19 (very precise)} 0-1

[Event "European Women-ch 2023"]
[Site "Petrovac"]
[Date "2023.03.27"]
[Round "9.3"]
[White "Mayrhuber, Nikola"]
[Black "Ismayil, Malak"]
[Result "1-0"]
[ECO "D35"]
[WhiteElo "2162"]
[BlackElo "2011"]
[Annotator "TA"]
[PlyCount "67"]
[EventDate "2023.03.15"]
[EventType "swiss"]
[EventCountry "MNE"]
[SourceTitle "playchess.com"]
[Source "ChessBase"]
[SourceQuality "1"]
[TimeControl "40/5400+30:1800+30"]

{[%evp 13,67,18,25,25,23,10,22,0,18,24,16,12,11,12,89,75,85,0,33,0,0,-23,64,70,76,53,60,65,60,45,141,98,227,204,216,143,416,402,373,122,506,457,498,264,962,951,939,935,897,896,874,878,870,861,801,779]} 1. d4 {[%emt 0:00:02]} d5 {[%emt 0:00:50]} 2. c4 {[%emt 0:00:05]} e6 {[%emt 0:00:03]} 3. Nc3 {[%emt 0:00:41]} Nf6 {[%emt 0:00:05]} 4. cxd5 {[%emt 0:00:06]} exd5 {[%emt 0:00:03]} 5. Bg5 {[%emt 0:00:06]} c6 {[%emt 0:00:04]} 6. e3 {[%emt 0:00:04]} Bd6 {[%emt 0:00:27]} 7. Bd3 {[%emt 0:01:09]} O-O {[%emt 0:00:21]} 8. Nge2 {[%emt 0:05:04] D35: Queen's Gambit Declined: Exchange Variation.} Re8 {[%emt 0:00:12]} 9. Qd2 {[%emt 0:03:46] [#]} a5 $146 {[%emt 0:04:09]} ({Predecessor:} 9... Nbd7 10. Ng3 Nf8 11. Nf5 Bc7 12. g4 Ng6 13. Qc2 h6 14. Bxf6 Qxf6 15. O-O-O Nh4 {0-1 Lodici,L (2553)-Escalante Ramirez,B (2496) Olympiad-44 Chennai 2022 (11.3)}) 10. f3 {[%emt 0:03:21][%cal Bf2f3,Bf3e4,Be4e5][%mdl 32] The position is equal.} b5 {[%emt 0:08:15]} 11. e4 {[%emt 0:15:35]} b4 {[%emt 0:06:17]} 12. Na4 {[%emt 0:03:45]} dxe4 {[%emt 0:02:32]} (12... h6 $2 13. Bxf6 Qxf6 14. Nb6 $18) 13. fxe4 {[%emt 0:00:16]} Be7 {[%emt 0:02:31] [#]} (13... h6 $2 14. Bxf6 Qxf6 15. Nb6 $18) (13... Nbd7 $1 $11 {keeps the balance.}) 14. e5 $1 $16 {[%emt 0:19:17] Hoping for Bxf6.} Nfd7 {[%emt 0:12:25]} 15. Be3 {[%emt 0:11:40] White has more active pieces.} (15. Bxe7 $16 Rxe7 16. O-O) 15... Ba6 $14 {[%emt 0:01:52]} 16. Be4 {[%emt 0:07:19]} (16. Rd1 $5) 16... Bb5 {[%emt 0:28:02]} 17. Qc2 {[%emt 0:00:08]} h6 {[%emt 0:01:05]} (17... Bh4+ $11 18. g3 Bg5 19. Bxg5 (19. Bxh7+ Kh8 $15) 19... Qxg5) 18. O-O {[%emt 0:02:09][%cal Of1f7]} Bg5 {[%emt 0:01:18]} 19. Bxg5 {[%emt 0:04:48]} Qxg5 {[%emt 0:00:04]} 20. Rf3 {[%emt 0:00:03] Repels Qe3+} (20. Qb3 $6 Nf6 21. Bf3 (21. exf6 $2 Rxe4 22. fxg7 Qxg7 $19) 21... Nbd7 $11) 20... Na6 {[%emt 0:07:27][%cal Od7e5]} 21. Ng3 {[%emt 0:01:02] Nf5 is the strong threat.} (21. Bxc6 $2 Rac8 22. Bxd7 Rxc2 $19) (21. Nf4 $5 {[%cal Re5e6]}) 21... g6 {[%emt 0:04:14] Prevents Nf5.} ({Black should try} 21... Rad8 $1 $14) 22. Rd1 {[%emt 0:07:12] And now h4 would win.} (22. Bxc6 $2 Rec8 23. d5 Nxe5 $19) 22... Nf8 {[%emt 0:05:10]} (22... Re6 $16 {is a better defense.}) 23. Nb6 $18 {[%emt 0:05:23]} (23. Bxc6 Rac8 24. d5 Qxe5 $14) 23... Rad8 {[%emt 0:00:44]} 24. Bxc6 {[%emt 0:00:37]} (24. Qb3 Ne6 $15) 24... Bxc6 {[%emt 0:01:53][%mdl 8192]} (24... b3 $16 25. Rxb3 (25. axb3 $2 {is the wrong capture.} Nb4 $19 {[%mdl 64] Deflection, Double Attack}) 25... Bxc6) 25. Qxc6 {[%emt 0:00:04]} Rxe5 {[%emt 0:02:48]} 26. Qb7 {[%emt 0:01:29]} (26. Rdf1 $18 {has better winning chances.} Re6 27. Qc4 (27. Qb7 Qe7 $16)) 26... Nb8 $2 {[%emt 0:06:01][%mdl 8192]} (26... Qe7 $16 {is more resistant.} 27. Qxa6 Re6 28. Qxa5 Qb7) 27. Qxf7+ {[%emt 0:00:06]} Kh8 {[%emt 0:00:05]} 28. Rdf1 {[%emt 0:02:06]} (28. Nd5 $142 {White threatens Nf6 and mate.} Rexd5 29. Ne4) 28... Ree8 $2 {[%emt 0:00:16] [#]} (28... Re7 29. Qc4 (29. Qxf8+ Rxf8 30. Rxf8+ Kg7 $11) 29... Nh7) 29. Ne4 $1 {[%emt 0:03:20][%mdl 512] White is clearly winning.} Qe7 {[%emt 0:00:43]} 30. Qxe7 {[%emt 0:00:46][%mdl 64] Remove Defender, Deflection} Rxe7 {[%emt 0:00:05] Black is weak on the dark squares} 31. Rxf8+ {[%emt 0:00:05]} Rxf8 {[%emt 0:00:08]} 32. Rxf8+ {[%emt 0:00:04]} Kg7 {[%emt 0:00:05]} 33. Rxb8 {[%emt 0:00:09]} Rxe4 {[%emt 0:00:05]} 34. d5 {[%emt 0:00:33] A cool game by Mayrhuber.   Weighted Error Value: White=0.44/Black=0.53} 1-0